Cogmind - Beta 13 @@@ ROGUE MODE // 2024.05.04 @ 10:08:34 Player: orthostice Result: Destroyed by Y-64 Sentinel with Wave Gun Performance ------------- Evolutions (5) 2500 Regions Visited (6) 1200 Robots Destroyed (60) 300 Value Destroyed (1551) 1551 Prototype IDs (0) 0 Alien Tech Used (0) 0 Bonus (48) 48 TOTAL SCORE: 5599 Bonus ------- High Alert Combat Kills 12 Follower Combat Kills 48 Friendly Fire -12 Cogmind --------- Core Integrity 0/1000 Matter 105/300 Energy 99/100 System Corruption 0% Temperature Cool (9) Movement Core (50) Location -5/Extension Parts ------- > --- POWER (1) -------- (None) > --- PROPULSION (5) --- (None) > --- UTILITY (8) ------ (None) > --- WEAPON (3) ------- (None) > --- INVENTORY (5) ---- Structural Scanner Ripper Peak State ------------ > --- POWER ------------ Light Nuclear Core > --- PROPULSION ------- Flight Unit VTOL Module VTOL Module VTOL Module VTOL Module > --- UTILITY ---------- Structural Scanner Melee Analysis Suite Microactuators Microactuators Microactuators > --- WEAPON ----------- Subdweller Shrapnel Launcher Power Sword > --- INVENTORY -------- Light Nuclear Core VTOL Module Structural Scanner Rocket Launcher Ripper [Rating: 36] Favorites ----------- Power Light Nuclear Core Engine Ion Engine Power Core Light Nuclear Core Propulsion Light Treads Treads Light Treads Leg Carbon-fiber Leg Flight Unit VTOL Module Utility High-capacity Storage Unit Device Structural Scanner Storage High-capacity Storage Unit Processor Melee Analysis Suite Protection Light Armor Plating Weapon Light Assault Rifle Energy Gun Small Laser Energy Cannon Subdweller Beam Cannon Ballistic Gun Light Assault Rifle Ballistic Cannon Light Cannon Launcher Rocket Launcher Special Weapon Flamer Impact Weapon Heavy Hammer Slashing Weapon Ripper Build | -11 -10 -10 -10 -7 -5 -5 ------- Run | Yrd Mat Min Sub Rec Fac Ext Slots Evolved 10 | . . . . . 10 . Power . | . . . . . . . Propulsion 3 | . . . . . 3 . Utility 6 | . . . . . 6 . Weapon 1 | . . . . . 1 . Parts Attached 83 | 6 11 . 33 6 22 5 Power 10 | 1 2 . 3 2 1 1 Engine 7 | 1 1 . 3 2 . . Core 3 | . 1 . . . 1 1 Reactor . | . . . . . . . Propulsion 22 | 2 . . 8 2 9 1 Treads 11 | 2 . . 5 2 2 . Leg 3 | . . . 3 . . . Wheel . | . . . . . . . Hover . | . . . . . . . Flight 8 | . . . . . 7 1 Utility 14 | 1 5 . 3 1 4 . Device 4 | . . . . 1 3 . Storage 7 | 1 4 . 2 . . . Processor 1 | . . . . . 1 . Hackware . | . . . . . . . Protection 2 | . 1 . 1 . . . Artifact . | . . . . . . . Weapon 37 | 2 4 . 19 1 8 3 Energy Gun 2 | 1 1 . . . . . Energy Cannon 1 | . . . 1 . . . Ballistic Gun 16 | 1 1 . 11 . 3 . Ballistic Cannon 2 | . 2 . . . . . Launcher 9 | . . . 5 1 2 1 Special Weapon 2 | . . . . . 2 . Impact Weapon 1 | . . . 1 . . . Slashing Weapon 4 | . . . 1 . 1 2 Piercing Weapon . | . . . . . . . Special Melee Weapon . | . . . . . . . Unidentified Prototypes . | . . . . . . . Parts Lost 24 | . 2 . 8 . 2 12 Power 3 | . . . 1 . . 2 Propulsion 11 | . . . 4 . 1 6 Utility 3 | . 1 . 1 . . 1 Weapon 7 | . 1 . 2 . 1 3 Highest Loss Streak 9 | . 1 . 3 . 1 9 To Critical Strikes 1 | . . . 1 . . . Average Slot Usage (%) 91 | . 99 100 83 99 55 32 Engine 6 | . 4 . 12 13 1 . Core 6 | . 9 14 . . 3 4 Treads 22 | . 28 28 14 25 4 . Leg 3 | . . . 13 2 . . Flight 1 | . . . . . 20 18 Device 1 | . . . . 13 6 . Storage 19 | . 23 28 12 14 1 . Protection 1 | . 4 . . . . . Energy Gun 4 | . 4 14 . . . . Energy Cannon 1 | . . . 4 . . . Ballistic Gun 11 | . 9 14 19 . 2 . Ballistic Cannon 4 | . 13 . . . . . Launcher 1 | . . . . 13 3 1 Slashing Weapon 2 | . . . 3 14 5 4 Naked Turns 7 | . . . . . . 7 Heaviest Build 94 | 10 94 49 60 53 55 19 Greatest Support 70 | 40 40 40 40 48 70 20 Greatest Overweight (x) 3 | 3 2 1 2 2 3 2 Average Overweight (x) . | . 1 1 1 1 . . Largest Inventory Capacity 25 | 8 25 20 25 20 20 5 Average Capacity 19 | 7 21 20 18 20 10 5 Most Carried 20 | 4 16 18 20 20 20 5 Average Carried 13 | 2 9 17 13 19 10 4 Final Capacity 20 | 8 20 20 20 20 5 5 Final Carried 20 | 4 16 18 20 20 5 2 Class Distribution -------------------- 89% | Mutant 5% | Scavenger-Mutant 3% | Scavenger-Sprinter Dominant Class ---------------- Mutant | -10/Materials Mutant | -10/Mines Mutant | -10/Subcaves Mutant | -7/Recycling Scavenger-Sprinter | -5/Factory Scavenger-Sprinter | -5/Extension Resources | -11 -10 -10 -10 -7 -5 -5 ----------- Run | Yrd Mat Min Sub Rec Fac Ext Matter Collected 1672 | 224 507 14 512 239 140 36 Remotely . | . . . . . . . Salvage Created 1310 | . 454 59 538 . 156 103 Parts 116 | . 45 11 38 . 15 7 Haulers Intercepted 2 | . 2 . . . . . Recyclers Shooed . | . . . . . . . Parts Field Recycled . | . . . . . . . Retrieved Matter . | . . . . . . . Parts Self-Destructed 13 | . . . 13 . . . Prevented . | . . . . . . . Kills | -11 -10 -10 -10 -7 -5 -5 ------- Run | Yrd Mat Min Sub Rec Fac Ext Combat Hostiles Destroyed 38 | . 7 1 19 . 8 3 Melee 3 | . . . . . 3 . Guns 11 | . . 1 9 . 1 . Cannons 10 | . 7 . 3 . . . AOE 14 | . . . 7 . 4 3 Classes Destroyed 10 | . 8 . 2 . . . Worker 2 | . 2 . . . . . Builder 9 | . 7 2 . . . . Tunneler 1 | . 1 . . . . . Hauler 2 | . 2 . . . . . Operator 1 | . 1 . . . . . Turret 2 | . . . 2 . . . Watcher 5 | . 3 . . . . 2 Swarmer 12 | . 2 1 1 . 8 . Grunt 7 | . 5 . . . . 2 Subdweller 18 | . . . 18 . . . Thug 1 | . . . . . . 1 Best Kill Streak 9 | . 3 1 9 . 4 4 Combat Bots Only 9 | . 2 1 9 . 4 3 Max Kills in Single Turn 3 | . 1 1 3 . 3 1 Gunslinging . | . . . . . . . Exploded 3 | . . . 3 . 3 1 Melee 1 | . . . . . 1 . Uniques/NPCs Destroyed . | . . . . . . . Combat | -11 -10 -10 -10 -7 -5 -5 -------- Run | Yrd Mat Min Sub Rec Fac Ext Hostile Shots Fired 352 | . 60 6 128 . 34 124 Missed 124 | . 19 3 51 . 7 44 Damage Taken 3956 | . 476 27 1532 . 401 1520 Core 1221 | . 6 . 197 . 46 972 Absorbed by Shields 17 | . . . . . . 17 Core Remaining (%) 59 | 100 . . . 18 . . Volleys Fired 140 | . 56 18 51 . 5 10 Largest 2 | . 2 2 2 . 1 1 Hottest 108 | . 70 60 108 . 40 33 Shots Fired 258 | . 106 36 101 . 5 10 Gun 157 | . 47 36 72 . 2 . Cannon 69 | . 59 . 10 . . . Launcher 32 | . . . 19 . 3 10 Special . | . . . . . . . Kinetic 189 | . 94 18 72 . 5 . Thermal 44 | . 12 18 14 . . . Explosive 25 | . . . 15 . . 10 Electromagnetic . | . . . . . . . Robot Hit Streak 18 | . 8 5 18 . 2 1 Robot Miss Streak 4 | . 4 3 3 . 3 2 Penetration Max . | . . . . . . . Secondary Targets 1 | . . . 1 . . . Max Gunslinging Chain 1 | . . . 1 . . . Shots Hit Robots 164 | . 64 21 65 . 6 8 Core Hits 93 | . 29 5 37 . 8 14 Critical Kills . | . . . . . . . Critical Parts Destroyed . | . . . . . . . Critical Strikes 3 | . 2 . . . . 1 Blast 2 | . 2 . . . . . Sever 1 | . . . . . . 1 Melee Attacks 23 | . . . 7 . 8 8 Impact 1 | . . . 1 . . . Slashing 22 | . . . 6 . 8 8 Piercing . | . . . . . . . Sneak Attacks 1 | . . . . . 1 . Combat Hostiles . | . . . . . . . Follow-up Attacks . | . . . . . . . Damage Inflicted 5381 | . 902 208 2665 . 499 1107 Guns 1231 | . 233 208 767 . 23 . Cannons 861 | . 669 . 192 . . . Explosions 2826 | . . . 1706 . 294 826 Melee 463 | . . . . . 182 281 Ramming . | . . . . . . . Kinetic 2238 | . 813 79 1029 . 317 . Thermal 643 | . 89 129 212 . . 213 Explosive 2037 | . . . 1424 . . 613 Electromagnetic . | . . . . . . . Impact . | . . . . . . . Slashing 463 | . . . . . 182 281 Piercing . | . . . . . . . Highest Corruption . | . . . . . . . Average Corruption . | . . . . . . . Corruption Purged . | . . . . . . . Corruption Blocked . | . . . . . . . Overload Shots . | . . . . . . . Overflow Damage 161 | . 20 . 19 . 55 67 Projectiles 20 | . 20 . . . . . Explosions 63 | . . . 19 . 13 31 Melee 78 | . . . . . 42 36 Knockbacks 4 | . 4 . . . . . Impact . | . . . . . . . Kinetic 4 | . 4 . . . . . Secondary . | . . . . . . . Self-Inflicted Damage 105 | . . . 12 . . 93 Shots 4 | . . . 1 . . 3 Rammed 2 | . . . . . . 2 Targets Rammed 2 | . . . . . . 2 Kicked . | . . . . . . . Crushed . | . . . . . . . Highest Temperature 96 | . 96 66 70 . . 3 Average Temperature 26 | . 26 25 28 . . 3 Received Heat Transfer 468 | . 129 . 213 . . 126 Siege Activations . | . . . . . . . Robots Corrupted . | . . . . . . . Combat Hostiles . | . . . . . . . Parts Fried . | . . . . . . . Impact Corruptions . | . . . . . . . Robots Melted . | . . . . . . . Combat Hostiles . | . . . . . . . Parts Melted . | . . . . . . . Heat Transferred 884 | . 200 275 309 . . 100 Parts Sabotaged . | . . . . . . . Parts Stolen . | . . . . . . . Parts Stripped . | . . . . . . . Power Chain Reactions . | . . . . . . . Alert | -11 -10 -10 -10 -7 -5 -5 ------- Run | Yrd Mat Min Sub Rec Fac Ext Peak Influence 436 | . 109 35 . 207 310 436 Initial 207 | . . . . 207 2 151 Average 41 | . 20 8 . 124 104 276 Maximum Alert Level 2 | . . . . 1 1 2 Low Security (%) 90 | 100 100 100 . 41 85 42 Level 1 8 | . . . . 58 14 33 Level 2 . | . . . . . . 23 Level 3 . | . . . . . . . Level 4 . | . . . . . . . Level 5 . | . . . . . . . High Security . | . . . . . . . Max Security . | . . . . . . . Squads Dispatched 3 | . 1 . . . 1 1 Investigation 1 | . . . . . . 1 Extermination . | . . . . . . . Reinforcement 2 | . 1 . . . 1 . Assault . | . . . . . . . Garrison . | . . . . . . . Intercept . | . . . . . . . Searches Triggered . | . . . . . . . Construction Impeded . | . . . . . . . Haulers Reinforced . | . . . . . . . Active Scanning Responses . | . . . . . . . Cargo Convoy Interrupts . | . . . . . . . Stealth | -11 -10 -10 -10 -7 -5 -5 --------- Run | Yrd Mat Min Sub Rec Fac Ext Distress Signals 1 | . . . . . . 1 Communications Jammed . | . . . . . . . Distress Signals . | . . . . . . . Times Spotted 97 | . 16 3 47 . 11 20 Peak Tracking Total 10 | . 6 3 8 . 6 10 Tactical Retreats 7 | . 1 1 3 . . 2 Traps | -11 -10 -10 -10 -7 -5 -5 ------- Run | Yrd Mat Min Sub Rec Fac Ext Traps Triggered 9 | . . . 4 . . 5 Indirectly . | . . . . . . . Trap Hack Attempts . | . . . . . . . Triggered . | . . . . . . . Disarmed . | . . . . . . . Reprogrammed . | . . . . . . . Reused . | . . . . . . . Traps Extracted . | . . . . . . . Installed . | . . . . . . . Triggered . | . . . . . . . Machines | -11 -10 -10 -10 -7 -5 -5 ---------- Run | Yrd Mat Min Sub Rec Fac Ext Machines Disabled 5 | . . . 4 . . 1 Max in Single Turn 2 | . . . 2 . . 1 Energy Cycler 1 | . . . . . . 1 Machines Repaired . | . . . . . . . Machines Dismantled . | . . . . . . . Machines Sabotaged . | . . . . . . . Overloaded Fab Kills . | . . . . . . . Hacking | -11 -10 -10 -10 -7 -5 -5 --------- Run | Yrd Mat Min Sub Rec Fac Ext Machines Accessed 8 | . 5 . . . . 3 Terminals 7 | . 4 . . . . 3 Fabricators . | . . . . . . . Repair Stations . | . . . . . . . Recycling Units 1 | . 1 . . . . . Scanalyzers . | . . . . . . . Garrison Access . | . . . . . . . Total Hacks 12 | . 8 . . . . 4 Successful 7 | . 5 . . . . 2 Failed 5 | . 3 . . . . 2 Catastrophic 1 | . . . . . . 1 Database Lockouts . | . . . . . . . Manual 2 | . 2 . . . . . Terminals 9 | . 5 . . . . 4 Fabricators . | . . . . . . . Repair Stations . | . . . . . . . Recycling Units 3 | . 3 . . . . . Scanalyzers . | . . . . . . . Garrison Access . | . . . . . . . Terminal Hacks 5 | . 3 . . . . 2 Robot Analysis 1 | . 1 . . . . . Open Door 2 | . . . . . . 2 Locate Traps 1 | . 1 . . . . . Hauler Manifests 1 | . 1 . . . . . Fabricator Hacks . | . . . . . . . Repair Station Hacks . | . . . . . . . Recycling Unit Hacks 2 | . 2 . . . . . Retrieve Matter 1 | . 1 . . . . . Retrieve Components 1 | . 1 . . . . . Scanalyzer . | . . . . . . . Garrison Access Hacks . | . . . . . . . Unauthorized Hacks . | . . . . . . . Terminals . | . . . . . . . Fabricators . | . . . . . . . Repair Stations . | . . . . . . . Recycling Units . | . . . . . . . Scanalyzers . | . . . . . . . Garrison Access . | . . . . . . . Data Cores Recovered . | . . . . . . . Used . | . . . . . . . Hacking Detections 4 | . 1 . . . . 3 Full Trace Events 1 | . . . . . . 1 Feedback Events . | . . . . . . . Feedback Blocked . | . . . . . . . Robot Schematics Acquired . | . . . . . . . Robots Built . | . . . . . . . Authchips . | . . . . . . . Time . | . . . . . . . Total Robot Build Rating . | . . . . . . . Part Schematics Acquired . | . . . . . . . Parts Built . | . . . . . . . Authchips . | . . . . . . . Time . | . . . . . . . Total Part Build Rating . | . . . . . . . Parts Repaired . | . . . . . . . Time . | . . . . . . . Parts Recycled . | . . . . . . . Recycled Matter . | . . . . . . . Retrieved Matter . | . . . . . . . Retrieved Components 2 | . 2 . . . . . Parts Scanalyzed . | . . . . . . . Part Schematics Acquired . | . . . . . . . Parts Damaged . | . . . . . . . Bothacking | -11 -10 -10 -10 -7 -5 -5 ------------ Run | Yrd Mat Min Sub Rec Fac Ext Used RIF Installer . | . . . . . . . Robots Hacked . | . . . . . . . Non-combat . | . . . . . . . Combat . | . . . . . . . Robot Hacks Applied . | . . . . . . . Relay Couplers Released . | . . . . . . . Fabnet Peak Effective % . | . . . . . . . Robots Rewired . | . . . . . . . Allies Hacked . | . . . . . . . Hacks Repelled . | . . . . . . . Allies | -11 -10 -10 -10 -7 -5 -5 -------- Run | Yrd Mat Min Sub Rec Fac Ext Total Allies 2 | . . . . . . 2 Largest Group 1 | . . . . . . 1 Highest-Rated Group 31 | . . . . . . 31 Highest-Rated Ally 31 | . . . . . . 31 Total Orders . | . . . . . . . Ally Attacks 15 | . . . . . . 15 Total Damage 322 | . . . . . . 322 Kills 1 | . . . . . . 1 Allies Corrupted . | . . . . . . . Allies Melted . | . . . . . . . Intel | -11 -10 -10 -10 -7 -5 -5 ------- Run | Yrd Mat Min Sub Rec Fac Ext Robot Analysis Total 1 | . 1 . . . . . Derelict Logs Recovered 3 | . . 2 1 . . . Drone Launches . | . . . . . . . Drone Recoveries . | . . . . . . . Exploration | -11 -10 -10 -10 -7 -5 -5 ------------- Run | Yrd Mat Min Sub Rec Fac Ext Turns Passed 8239 | 91 2826 1847 2256 680 334 205 Spaces Moved 3833 | 53 993 732 841 258 612 344 Core 22 | 9 . . . . . 13 Treads 2549 | 44 993 732 486 258 36 . Legs 355 | . . . 355 . . . Wheels . | . . . . . . . Hover . | . . . . . . . Flight 907 | . . . . . 576 331 Fastest Speed 23 | 50 160 240 160 242 24 23 Average Speed 193 | 148 260 240 236 258 38 33 Slowest Speed 360 | 200 320 240 360 360 269 195 Overloaded Moves . | . . . . . . . Propulsion Burnouts . | . . . . . . . Robots Hopped 2 | . . . . . . 2 Cave-ins Triggered . | . . . . . . . Exploration Rate (%) 56 | 5 98 99 52 74 18 52 Regions Visited 6 Branch Regions 4 Pre-discovered Areas . | . . . . . . . Known Exits Taken . | . . . . . . . Unknown Exits Taken 6 | 1 1 1 1 1 1 . Scrap Searched 4 | . . 1 3 . . . Spaces Dug 22 | . . . . . 22 . Terrain Destroyed 221 | . . . 131 . 50 40 Melee 4 | . . . . . 4 . Projectile 1 | . . . 1 . . . AOE 216 | . . . 130 . 46 40 Terrain Rammed . | . . . . . . . Walls Destroyed . | . . . . . . . Machines Disabled . | . . . . . . . Actions | -11 -10 -10 -10 -7 -5 -5 --------- Run | Yrd Mat Min Sub Rec Fac Ext Total 4381 | 62 1133 791 1009 273 700 413 Wait 126 | . 53 40 10 . 21 2 Move 3823 | 52 992 731 840 257 611 340 Hop 2 | . . . . . . 2 Pick Up 71 | 4 16 2 36 4 9 . Fast Attach 16 | 6 1 . 2 2 4 1 Attach 23 | . 2 . 9 1 7 4 Detach 3 | . . . . . 2 1 Swap 44 | . 8 . 22 3 11 . Drop 69 | . 5 . 31 6 22 5 Fire 140 | . 56 18 51 . 5 10 Melee 23 | . . . 7 . 8 8 Ram 2 | . . . . . . 2 Kick . | . . . . . . . Crush . | . . . . . . . Escape Stasis 38 | . . . . . . 38 Rewire . | . . . . . . . Trap . | . . . . . . . Miscellaneous 1 | . . . 1 . . . Route ------- -11/Scrapyard -10/Materials (discovered 4 exits: [*Mat x3] / [*Min]) -10/Mines (discovered 3 exits: [*Mat x2] / [*Sub]) -10/Subcaves (discovered 3 exits: *Mat x2 / *Rec) -7/Recycling -5/Factory -5/Extension History --------- Turn | Location | Event 7 | -11/Scrapyard | Discovered new exit (range 16) 92 | -11/Scrapyard | Entered Materials 305 | -10/Materials | Build established: Mutant 431 | -10/Materials | Discovered new exit (range 10) 1074 | -10/Materials | Discovered new exit (range 15) 1119 | -10/Materials | Discovered new exit (range 13) 1278 | -10/Materials | Discovered new exit (range 16) 2918 | -10/Materials | Entered Mines 2939 | -10/Mines | Met a Derelict bent on vengeance 3103 | -10/Mines | Received a Rocket Launcher from a helpful Derelict 3213 | -10/Mines | Discovered new exit (range 7) 3283 | -10/Mines | Discovered new exit (range 13) 3547 | -10/Mines | Learned Materials terminal intel 3626 | -10/Mines | Learned 2 Materials zone layouts 3892 | -10/Mines | Discovered new exit (range 8) 4765 | -10/Mines | Entered Subcaves 4864 | -10/Subcaves | Ambushed by swarm of Subdwellers 4868 | -10/Subcaves | Ambushed by Subdwellers from Twisted Machinery 4871 | -10/Subcaves | Ambushed by Subdwellers from Twisted Machinery 4890 | -10/Subcaves | Ambushed by Subdweller buried in earth 4916 | -10/Subcaves | Lost 4 allies 4951 | -10/Subcaves | Destroyed 9 combat bots 5685 | -10/Subcaves | Lost 3 parts (2n1w) 6362 | -10/Subcaves | Shifting Twisted Machinery released Sub. Laser 6365 | -10/Subcaves | Discovered new exit (range 9) 6376 | -10/Subcaves | Core integrity fell below 50% 6382 | -10/Subcaves | Ambushed by Subdweller buried in earth 6382 | -10/Subcaves | Ambushed by Subdweller buried in earth 6384 | -10/Subcaves | Core integrity fell below 20% 6385 | -10/Subcaves | Ambushed by Subdweller buried in earth 6396 | -10/Subcaves | Shifting Twisted Machinery released Flamer 6632 | -10/Subcaves | Identified exit to Materials 6666 | -10/Subcaves | Shifting Twisted Machinery released Barrage Gun 6669 | -10/Subcaves | Shifting Twisted Machinery released Riot Gun 6787 | -10/Subcaves | Discovered exit to Materials (range 15) 7021 | -10/Subcaves | Entered Recycling 7030 | -7/Recycling | Found Scrap Engine 7406 | -7/Recycling | Discovered new exit (range 6) 7701 | -7/Recycling | Entered Factory 7701 | -5/Factory | Evolved 10 slots: Propulsion x3, Utility x6, Weapon x1 8019 | -5/Factory | Discovered new exit (range 11) 8035 | -5/Factory | Entered Extension 8064 | -5/Extension | Spotted B-75 Beast 8066 | -5/Extension | Spotted B-75 Beast 8071 | -5/Extension | Rescued a captive Derelict 8142 | -5/Extension | Rescued a captive Derelict 8160 | -5/Extension | Energy Cycler disabled 8162 | -5/Extension | Rescued a captive Derelict 8163 | -5/Extension | Rescued a captive Derelict 8227 | -5/Extension | Core integrity fell below 50% 8236 | -5/Extension | Core integrity fell below 20% 8240 | -5/Extension | Destroyed by Y-64 Sentinel with Wave Gun Last Messages --------------- G-50 Soldier destroyed. Lgt. Nuclear Core destroyed. Rocket Launcher destroyed. VTOL Module destroyed. Slug penetrates AL-LM0(g). Slug penetrates Wall. VTOL Module destroyed. U-05 Engineer builds a Wall. VTOL Module destroyed. U-05 Engineer lays Concrete. Lgt. Nuclear Core destroyed. U-05 Engineer lays Concrete. U-05 Engineer destroyed. Y-64 Sentinel Imp. Treads severed. Penetrated by Slug. Phasing Sabre destroyed. Power Sword destroyed. Penetrated by Slug. Slammed into Y-64 Sentinel. Penetrated by Slug. Map ----- +----------------------------------------------------+ | | | | | | | | | | | | | | | | | ?????????????????????????????????????????? | | ?????????????????#####???????????????????? | | ??########???????#"""#?###############???? | | ??# ] #???????#"T"#?# ##### | | ??# #########" "### # | | ??# / + | | ??# #### # | | ??# [ [[ #??# !!! ############ | | ??# #??#!] !!! | | ??####/###??#]] !! Y | | ????# #???# * | | ????# ##### %= | | ????# u ^^ = | | ????## ##############Y#+###### %= | | ????## ### =Y ###### | | ????## ### ss ????? | | ????## ### ss # #??? | | ????## ### @ s ######?? | | ????## ### #?????# | | ????## ### #?????# | | ????## #######################?????###### | | ????## ##????????????????????????????????# | | ????## ##????????????????????????????????? | | ????## ##????????????????????????????????? | | ????## ##????????????????????????????????? | | ????## ##????????????????????????????????? | | ????## ##????????????????????????????????? | | ????## ##????????????????????????????????? | | ????## ##????????????????????????????????? | | ????## ##????????????????????????????????? | | ????## ##????????????????????????????????? | | ????##!##????????????????????????????????? | | ????## ##????????????????????????????????? | | ###### ######????????????????????????????? | | ###### ######????????????????????????????? | | ## "" "" ############################### | | ## " " ############################### | | ## | | ## | | ## !! | | ## | | ## | +----------------------------------------------------+ Best States ------------- Heat Dissipation 40 Energy Generation 18 Energy Capacity 250 Matter Stores 400 Matter Capacity 400 Sight Range 16 Terrain Scan Density 10 Armor Coverage 800 Melee Speed Boost 50 Evasion (%) 65 Melee Accuracy 5 Recoil Reduction 3 Item Schematics ----------------- None Robot Schematics ------------------ None Fabricated ------------ Nothing Alien Tech Used ----------------- None Achievements -------------- Can't Catch Me Short-term Sacrifices Challenges ------------ None Game ------ Seed HardlightCoolingMount Manual? 0 Play Time 00:58:44 Cumulative 12.6 hours Start 2024.05.04 @ 09:10:37 End 2024.05.04 @ 10:08:34 Sessions 1 Manual Loads 0 Difficulty Rogue Special Mode None Game No. 27 Rogue 27 Adventurer 0 Explorer 0 Win Type - Total 0 Types 0/0/0/0/0/0/0/0/0 Lore% 16 Gallery% 17 Achievement% 16 Wizard Run 0 Options --------- Layout 1 ASCII 0 Keyboard 0 Movement Numpad Keybinds 0 Fullscreen 2 Font 32/SmallcapsGlow Map View 50x35 Zoom Use 0% Tactical HUD 0 Map Filters NONE Filters NONE Steam 1 RUN: e9588298-aa23-45fa-bccc-f8414686bfd2